Workbook

Sheet 7-10 лет
B3: СОГЛАСОВАНО: | E3: УТВЕРЖДАЮ:
E5: ________________________
E6: Директор М.И. Жинько
B17: ГБУ "Автозаводский детский дом-интернат"
B28: ПРИМЕРНОЕ ЧЕТЫРНАДЦАТИДНЕВНОЕ (ДВУХНЕДЕЛЬНОЕ) МЕНЮ ДЛЯ ВОСПИТАННИКОВ С 7 ДО 10 ЛЕТ
B50: 2021 год
B51: МЕНЮ
B53: П Е Р В Ы Й Д Е Н Ь
B55: ЗАВТРАК
A56: № рец | B56: Наименование блюда | C56: Выход | D56: Б | E56: Ж | F56: У | G56: К
A57: 223 | B57: Запеканка из творога с йогуртом | C57: 180 | D57: 28.166 | E57: 16.27 | F57: 23.556 | G57: 356.03
A58: 15 | B58: Сыр | C58: 25 | D58: 6.5 | E58: 6.5 | F58: - | G58: 90
A59: 14 | B59: Масло сливочное | C59: 10 | D59: 0.08 | E59: 7.25 | F59: 0.13 | G59: 66.1
A60: 376 | B60: Кофейный напиток с молоком | C60: 200 | D60: 4 | E60: 4.07 | F60: 24.09 | G60: 152.8
B61: Батон | C61: 75 | D61: 5.63 | E61: 2.18 | F61: 38.58 | G61: 196.28
B62: Итого завтрак | D62: =SUM(D57:D61) -> 44.376 | E62: =SUM(E57:E61) -> 36.27 | F62: =SUM(F57:F61) -> 86.356 | G62: =SUM(G57:G61) -> 861.21
B63: ОБЕД
A64: 75 | B64: Икра свекольная | C64: 75 | D64: 1.13 | E64: 5.669 | F64: 7.69 | G64: 85.34
A65: 87 | B65: Щи со сметаной на м/к бульоне | C65: 250 | D65: 1.65 | E65: 7.192 | F65: 9.41 | G65: 111.85
A66: 268 | B66: Котлета мясная | C66: 80 | D66: 11.89 | E66: 18.46 | F66: 8.19 | G66: 245.07
A67: 203 | B67: Вермишель отварная | C67: 150 | D67: 5.34 | E67: 6.68 | F67: 35.77 | G67: 204.92
B68: Сок фруктовый, яблочный | C68: 200 | D68: 1 | E68: - | F68: 18.2 | G68: 140
B69: Хлеб ржаной | C69: 80 | D69: 5.28 | E69: 0.96 | F69: 26.72 | G69: 136.64
B70: Итого обед | D70: =SUM(D64:D69) -> 26.29 | E70: =SUM(E64:E69) -> 38.961 | F70: =SUM(F64:F69) -> 105.98 | G70: =SUM(G64:G69) -> 923.82
B71: ПОЛДНИК
B72: Зефир | C72: 30 | D72: 0.24 | E72: - | F72: 23.49 | G72: 89.7
B73: Банан | C73: 200 | D73: 2.77 | E73: 0.92 | F73: 38.85 | G73: 174.83
B74: Чай без сахара | C74: 200 | D74: 0.1 | E74: 0.025 | F74: 0.02 | G74: -
B75: Итого полдник | D75: =SUM(D72:D74) -> 3.11 | E75: =SUM(E73:E74) -> 0.945 | F75: =SUM(F72:F74) -> 62.36 | G75: =SUM(G72:G74) -> 264.53
B76: УЖИН
B77: Огурец свежий | C77: 75 | D77: 1.12 | E77: 0.07 | F77: 5.77 | G77: 27
A78: 228 | B78: Рыба припущенная в молоке | C78: 100 | D78: 8.98 | E78: 11.11 | F78: 6.35 | G78: 160.95
A79: 128 | B79: Картофельное пюре | C79: 200 | D79: 4.32 | E79: 6.72 | F79: 29.37 | G79: 200.47
A80: 349 | B80: Компот из сухофруктов | C80: 200 | D80: 0.5 | E80: - | F80: 30.86 | G80: 120.34
B81: Батон | C81: 65 | D81: 4.88 | E81: 1.89 | F81: 33.44 | G81: 170.11
B82: Итого ужин | D82: =SUM(D77:D81) -> 19.8 | E82: =SUM(E77:E81) -> 19.79 | F82: =SUM(F77:F81) -> 105.79 | G82: =SUM(G77:G81) -> 678.87
B83: ВТОРОЙ УЖИН
A84: 386 | B84: Кефир 2,5% | C84: 200 | D84: 5.6 | E84: 6.41 | F84: 9.42 | G84: 116.24
B85: Гренки/сухарики | C85: 10 | D85: 0.77 | E85: 0.24 | F85: 4.9 | G85: 35.4
B86: Итого второй ужин | D86: =SUM(D84:D85) -> 6.37 | E86: =SUM(E84:E85) -> 6.65 | F86: =SUM(F84:F85) -> 14.32 | G86: =SUM(G84:G85) -> 151.64
B88: Соль за целый день | C88: 5 | D88: - | E88: - | F88: - | G88: -
B90: Итого за день | D90: =D86+D82+D75+D70+D62 -> 99.946 | E90: =E86+E82+E75+E70+E62 -> 102.616 | F90: =F86+F82+F75+F70+F62 -> 374.806 | G90: =G86+G82+G75+G70+G62 -> 2880.07
B94: МЕНЮ
B96: В Т О Р О Й Д Е Н Ь
B98: ЗАВТРАК
B99: Наименование блюда | C99: Выход | D99: Б | E99: Ж | F99: У | G99: К
A100: 182 | B100: Каша пшенная | C100: 200 | D100: 7.49 | E100: 9.63 | F100: 34.71 | G100: 248.22
A101: 14 | B101: Масло сливочное | C101: 10 | D101: 0.08 | E101: 7.25 | F101: 0.13 | G101: 66.1
A102: 16 | B102: Колбаса отварная | C102: 35 | D102: 4.55 | E102: 6.79 | F102: - | G102: 79.45
A103: 378 | B103: Чай с молоком | C103: 200 | D103: 1.49 | E103: 1.62 | F103: 17.37 | G103: 85.85
B104: Яблоко свежее | C104: 200 | D104: 0.74 | E104: 0.74 | F104: 18.06 | G104: 82.29
B105: Батон | C105: 75 | D105: 5.63 | E105: 2.18 | F105: 38.58 | G105: 196.28
B106: Итого завтрак | D106: =SUM(D100:D105) -> 19.98 | E106: =SUM(E100:E105) -> 28.21 | F106: =SUM(F100:F105) -> 108.85 | G106: =SUM(G100:G105) -> 758.19
B107: ОБЕД
B108: Икра кабачковая | C108: 75 | D108: 1.5 | E108: 6.75 | F108: 6.37 | G108: 91.5
A109: 82 | B109: Борщ со сметаной | C109: 250 | D109: 1.88 | E109: 7.153 | F109: 11.67 | G109: 119.62
A110: 231 | B110: Поджарка рыбная | C110: 130 | D110: 20.58 | E110: 14.15 | F110: 11.06 | G110: 253.87
A111: 304 | B111: Рис отварной | C111: 150 | D111: 3.84 | E111: 5.62 | F111: 38.86 | G111: 223.93
B112: Сок фруктовый, виноградный | C112: 200 | D112: 0.6 | E112: - | F112: 27.6 | G112: 108
B113: Хлеб ржаной | C113: 80 | D113: 5.28 | E113: 0.96 | F113: 26.72 | G113: 136.64
B114: Итого обед | D114: =SUM(D108:D113) -> 33.68 | E114: =SUM(E108:E113) -> 34.633 | F114: =SUM(F108:F113) -> 122.28 | G114: =SUM(G108:G113) -> 933.56
B115: ПОЛДНИК
A116: 210 | B116: Омлет натуральный | C116: 110 | D116: 11.08 | E116: 17.45 | F116: 2.09 | G116: 209.18
B117: Молоко топленое | C117: 200 | D117: 5.8 | E117: 8 | F117: 9.4 | G117: 132.8
B118: Итого полдник | D118: =SUM(D116:D117) -> 16.88 | E118: =SUM(E116:E117) -> 25.45 | F118: =SUM(F116:F117) -> 11.49 | G118: =SUM(G116:G117) -> 341.98
B119: УЖИН
B120: Помидоры свежие | C120: 75 | D120: 1.12 | E120: 0.07 | F120: 5.77 | G120: 27
A121: 299 | B121: Суфле из бройлеров-цыплят | C121: 60 | D121: 9.49 | E121: 13.515 | F121: 2.67 | G121: 171.01
A122: 143 | B122: Рагу овощное | C122: 200 | D122: 3.72 | E122: 7.6 | F122: 18.62 | G122: 170.82
A123: 348 | B123: Компот из кураги | C123: 200 | D123: 0.5 | E123: - | F123: 30.86 | G123: 120.34
B124: Батон | C124: 75 | D124: 5.63 | E124: 2.18 | F124: 38.58 | G124: 196.28
B125: Итого ужин | D125: =SUM(D120:D124) -> 20.46 | E125: =SUM(E120:E124) -> 23.365 | F125: =SUM(F120:F124) -> 96.5 | G125: =SUM(G120:G124) -> 685.45
B126: ВТОРОЙ УЖИН
A127: 386 | B127: Ряженка | C127: 200 | D127: 5.6 | E127: 6.41 | F127: 11.05 | G127: 136.46
B128: Печенье | C128: 10 | D128: 0.74 | E128: 0.98 | F128: 7.44 | G128: 41.54
B129: Итого второй ужин | D129: =SUM(D127:D128) -> 6.34 | E129: =SUM(E127:E128) -> 7.39 | F129: =SUM(F127:F128) -> 18.49 | G129: =SUM(G127:G128) -> 178
B131: Соль за целый день | C131: 5 | D131: - | E131: - | F131: - | G131: -
B133: Итого за день | D133: =D129+D125+D118+D114+D106 -> 97.34 | E133: =E129+E125+E118+E114+E106 -> 119.048 | F133: =F129+F125+F118+F114+F106 -> 357.61 | G133: =G129+G125+G118+G114+G106 -> 2897.18
B135: МЕНЮ
B137: Т Р Е Т И Й Д Е Н Ь
B139: ЗАВТРАК
B140: Наименование блюда | C140: Выход | D140: Б | E140: Ж | F140: У | G140: К
A141: 219 | B141: Сырники из творога со сгущенным молоком | C141: 170 | D141: 29.91 | E141: 16.68 | F141: 43.18 | G141: 458.03
A142: 14 | B142: Масло сливочное | C142: 10 | D142: 0.08 | E142: 7.25 | F142: 0.13 | G142: 66.1
A143: 209 | B143: Яйцо вареное | C143: 1 шт | D143: 5.1 | E143: 4.6 | F143: 0.28 | G143: 62.84
A144: 376 | B144: Чай с лимоном | C144: 200 | D144: 0.13 | E144: 0.02 | F144: 15.2 | G144: 62
B145: Батон | C145: 75 | D145: 5.63 | E145: 2.18 | F145: 38.58 | G145: 196.28
B146: Итого завтрак | D146: 40.85 | E146: 30.73 | F146: 97.37 | G146: 845.25
B147: ОБЕД
A148: 67 | B148: Винегрет овощной | C148: 75 | D148: 1.1 | E148: 7.607 | F148: 5.82 | G148: 96.42
A149: 103 | B149: Суп картофельный с вермишелью на курином бульоне | C149: 250 | D149: 2.95 | E149: 2.85 | F149: 21.9 | G149: 128.39
A150: 288 | B150: Цыпленок отварн. | C150: 75 | D150: 15.82 | E150: 10.2 | F150: - | G150: 155.1
A151: 302 | B151: Каша гречневая рассыпчатая | C151: 150 | D151: 5.84 | E151: 4.77 | F151: 4.16 | G151: 237.4
B152: Груша свежая | C152: 200 | D152: 1.66 | E152: 0.37 | F152: 14.98 | G152: 69.93
B153: Сок фруктовый, персиковый | C153: 200 | D153: 0.6 | E153: - | F153: 34 | G153: 132
B154: Хлеб ржаной | C154: 80 | D154: 5.28 | E154: 0.96 | F154: 26.72 | G154: 136.64
B155: Итого обед | D155: =SUM(D148:D154) -> 33.25 | E155: =SUM(E148:E154) -> 26.757 | F155: =SUM(F148:F154) -> 107.58 | G155: =SUM(G148:G154) -> 955.88
B156: ПОЛДНИК
B157: Желе из апельсинов | C157: 100 | D157: 2.65 | E157: 0.02 | F157: 12.28 | G157: 60.4
B158: Вафли | C158: 10 | D158: 0.32 | E158: 0.28 | F158: 8 | G158: 35
B159: Чудо-молоко | C159: 200 | D159: 2.8 | E159: 2 | F159: 7.5 | G159: 67
B160: Итого полдник | D160: 8.89 | E160: 2.3 | F160: 27.78 | G160: 162.4
B161: УЖИН
B162: Сельдь с/с | C162: 25 | D162: 4.25 | E162: 2.12 | F162: - | G162: 36.25
A163: 75 | B163: Икра морковная | C163: 75 | D163: 1.03 | E163: 5.669 | F163: 7.18 | G163: 81.32
A164: 268 | B164: Биточки мясные | C164: 105 | D164: 12.29 | E164: 16.41 | F164: 9.845 | G164: 234.06
A165: 125 | B165: Картофель отварной | C165: 200 | D165: 4.06 | E165: 5.88 | F165: 32.69 | G165: 206.27
A166: 348 | B166: Компот из груши | C166: 200 | D166: 0.16 | E166: 0.12 | F166: 27.75 | G166: 110.56
B167: Батон | C167: 55 | D167: 4.13 | E167: 1.6 | F167: 28.3 | G167: 143.94
B168: Итого ужин | D168: =SUM(D162:D167) -> 25.92 | E168: 31.8 | F168: 105.76 | G168: =SUM(G162:G167) -> 812.4
B169: ВТОРОЙ УЖИН
B170: Йогурт | C170: 200 | D170: 5.6 | E170: 6.41 | F170: 9.41 | G170: 116.22
B171: Батон | C171: 20 | D171: 1.5 | E171: 0.58 | F171: 10.28 | G171: 52.34
B172: Итого второй ужин | D172: =SUM(D170:D171) -> 7.1 | E172: =SUM(E170:E171) -> 6.99 | F172: =SUM(F170:F171) -> 19.69 | G172: =SUM(G170:G171) -> 168.56
B174: Соль за целый день | C174: 5 | D174: - | E174: - | F174: - | G174: -
B176: Итого за день | D176: 116.01 | E176: 98.57 | F176: 358.18 | G176: 2944.49
B179: МЕНЮ
B181: Ч Е Т В Е Р Т Ы Й Д Е Н Ь
B183: ЗАВТРАК
B184: Наименование блюда | C184: Выход | D184: Б | E184: Ж | F184: У | G184: К
A185: 120 | B185: Суп молочный с крупой | C185: 200 | D185: 2.97 | E185: 3.57 | F185: 6.14 | G185: 71.2
A186: 14 | B186: Масло сливочное | C186: 10 | D186: 0.08 | E186: 7.25 | F186: 0.13 | G186: 66.1
A187: 16 | B187: Колбаса отварная | C187: 35 | D187: 4.55 | E187: 6.79 | F187: - | G187: 79.45
A188: 382 | B188: Какао с молоком | C188: 200 | D188: 3.76 | E188: 3.9 | F188: 25.81 | G188: 149
B189: Апельсин | C189: 200 | D189: 0.74 | E189: 0.55 | F189: 19.06 | G189: 84.4
B190: Батон | C190: 75 | D190: 5.63 | E190: 2.18 | F190: 38.58 | G190: 196.28
B191: Итого завтрак | D191: 17.73 | E191: 24.24 | F191: 89.72 | G191: 646.43
B192: ОБЕД
B193: Икра кабачковая | C193: 75 | D193: 1.5 | E193: 6.75 | F193: 6.37 | G193: 91.5
A194: 101 | B194: Суп картофельный с рыбными фрикадельками | C194: 250 | D194: 9.18 | E194: 6.88 | F194: 15.65 | G194: 174.64
A195: 284 | B195: Запеканка картофельная с мясом | C195: 250 | D195: 18.63 | E195: 26.49 | F195: 42.3 | G195: 487.07
B196: Сок фруктовый, яблочный | C196: 200 | D196: 1 | E196: - | F196: 18.2 | G196: 140
B197: Хлеб ржаной | C197: 80 | D197: 5.28 | E197: 0.96 | F197: 26.72 | G197: 136.64
B198: Итого обед | D198: 35.59 | E198: 41.08 | F198: 109.24 | G198: 1029.85
B199: ПОЛДНИК
A200: 466 | B200: Пирожок с рисом и яйцом | C200: 50 | D200: 3.66 | E200: 3.18 | F200: 20.96 | G200: 126.61
A201: 350 | B201: Кисель из клюквы | C201: 200 | D201: 0.169 | E201: 0.1 | F201: 29.9 | G201: 117.4
B202: Итого полдник | D202: =SUM(D200:D201) -> 3.829 | E202: =SUM(E200:E201) -> 3.28 | F202: =SUM(F200:F201) -> 50.86 | G202: =SUM(G200:G201) -> 244.01
B203: УЖИН
B204: Огурец свежий | C204: 75 | D204: 1.12 | E204: 0.07 | F204: 5.77 | G204: 27
A205: 251 | B205: Поджарка мясная | C205: 65 | D205: 15.09 | E205: 17.72 | F205: 3.03 | G205: 228.13
A206: 139 | B206: Капуста тушеная | C206: 200 | D206: 4.42 | E206: 6.83 | F206: 19.57 | G206: 155.41
A207: 348 | B207: Компот из изюма | C207: 200 | D207: 0.5 | E207: - | F207: 30.86 | G207: 120.34
B208: Батон | C208: 75 | D208: 5.63 | E208: 2.18 | F208: 38.58 | G208: 196.28
B209: Итого ужин | D209: =SUM(D204:D208) -> 26.76 | E209: =SUM(E204:E208) -> 26.8 | F209: =SUM(F204:F208) -> 97.81 | G209: =SUM(G204:G208) -> 727.16
B210: ВТОРОЙ УЖИН
A211: 386 | B211: Простокваша 2,5% | C211: 200 | D211: 5.8 | E211: 5 | F211: 7.95 | G211: 98.21
B212: Пряники | C212: 10 | D212: 0.63 | E212: 0.21 | F212: 7.56 | G212: 34.65
B213: Итого второй ужин | D213: =SUM(D211:D212) -> 6.43 | E213: =SUM(E211:E212) -> 5.21 | F213: =SUM(F211:F212) -> 15.51 | G213: =SUM(G211:G212) -> 132.86
B215: Соль за целый день | C215: 5 | D215: - | E215: - | F215: - | G215: -
B217: Итого за день | D217: =D213+D209+D202+D198+D191 -> 90.339 | E217: =E213+E209+E202+E198+E191 -> 100.61 | F217: =F213+F209+F202+F198+F191 -> 363.14 | G217: 2780.31
B221: МЕНЮ
B223: П Я Т Ы Й Д Е Н Ь
B225: ЗАВТРАК
B226: Наименование блюда | C226: Выход | D226: Б | E226: Ж | F226: У | G226: К
A227: 181 | B227: Каша манная | C227: 200 | D227: 6.66 | E227: 8.86 | F227: 35.56 | G227: 253.25
A228: 14 | B228: Масло сливочное | C228: 10 | D228: 0.08 | E228: 7.25 | F228: 0.13 | G228: 66.1
A229: 15 | B229: Сыр | C229: 25 | D229: 6.5 | E229: 6.5 | F229: - | G229: 90
A230: 376 | B230: Кофейный напиток с молоком | C230: 200 | D230: 4 | E230: 4.07 | F230: 24.09 | G230: 152.8
B231: Яблоко свежее | C231: 200 | D231: 0.74 | E231: 0.74 | F231: 18.06 | G231: 82.29
B232: Батон | C232: 75 | D232: 5.63 | E232: 2.18 | F232: 38.58 | G232: 196.28
B233: Итого завтрак | D233: =SUM(D227:D232) -> 23.61 | E233: =SUM(E227:E232) -> 29.6 | F233: =SUM(F227:F232) -> 116.42 | G233: =SUM(G227:G232) -> 840.72
B234: ОБЕД
A235: 47 | B235: Салат из квашеной капусты | C235: 75 | D235: 1.15 | E235: 3.75 | F235: 5.85 | G235: 63.76
A236: 96 | B236: Рассольник "Ленинградский" со сметаной | C236: 250 | D236: 2.49 | E236: 7.41 | F236: 17.45 | G236: 148.6
A237: 260 | B237: Гуляш мясной | C237: 100 | D237: 15.075 | E237: 19.595 | F237: 1.281 | G237: 247.01
A238: 202 | B238: Рожки отварные | C238: 150 | D238: 5.34 | E238: 3.68 | F238: 35.77 | G238: 204.92
B239: Сок фруктовый, виноградный | C239: 200 | D239: 0.6 | E239: - | F239: 27.6 | G239: 108
B240: Хлеб ржаной | C240: 80 | D240: 5.28 | E240: 0.96 | F240: 26.72 | G240: 136.64
B241: Итого обед | D241: =D240+D239++D238+D237+D236+D235 -> 29.935 | E241: =E240+E238+E237+E236+E235 -> 35.395 | F241: =F240+F239+F238+F237+F236+F235 -> 114.671 | G241: =G240+G239+G238+G237+G236+G235 -> 908.93
B242: ПОЛДНИК
A243: 420 | B243: Колбасное изделие,запеченное в тесте | C243: 100 | D243: 11.21 | E243: 12.23 | F243: 30.32 | G243: 276.19
A244: 385 | B244: Молоко кипяченое | C244: 200 | D244: 5.8 | E244: 6.4 | F244: 9.4 | G244: 118.4
B245: Итого полдник | D245: =SUM(D243:D244) -> 17.01 | E245: =SUM(E243:E244) -> 18.63 | F245: =SUM(F243:F244) -> 39.72 | G245: =SUM(G243:G244) -> 394.59
B246: УЖИН
A247: 240 | B247: Салат картофельный с сол. огурцами и зел. горошком | C247: 75 | D247: 1.31 | E247: 4.64 | F247: 6.94 | G247: 74.63
B248: Фрикадельки рыбные | C248: 105 | D248: 10.92 | E248: 3.45 | F248: 10.345 | G248: 114.7
A249: 126 | B249: Картофель отварной с луком | C249: 150 | D249: 4.38 | E249: 9.67 | F249: 27.03 | G249: 185.58
A250: 350 | B250: Кисель из кураги | C250: 200 | D250: 0.89 | E250: 0.06 | F250: 32.75 | G250: 154.6
B251: Батон | C251: 75 | D251: 5.63 | E251: 2.18 | F251: 38.58 | G251: 196.28
B252: Итого ужин | D252: 23.13 | E252: 20 | F252: 115.65 | G252: 725.79
B253: ВТОРОЙ УЖИН
B254: Снежок | C254: 200 | D254: 0.13 | E254: 0.4 | F254: 9.19 | G254: 50.6
B255: Вафли | C255: 10 | D255: 0.32 | E255: 0.28 | F255: 8 | G255: 35
B256: Итого второй ужин | D256: =SUM(D254:D255) -> 0.45 | E256: =SUM(E254:E255) -> 0.68 | F256: =SUM(F254:F255) -> 17.19 | G256: =SUM(G254:G255) -> 85.6
B258: Соль за целый день | C258: 5 | D258: - | E258: - | F258: - | G258: -
B260: Итого за день | D260: 72.315 | E260: 104.305 | F260: 403.65 | G260: 103.44
B262: МЕНЮ
C264: Ш Е С Т О Й Д Е Н Ь
B266: ЗАВТРАК
B267: Наименование блюда | C267: Выход | D267: Б | E267: Ж | F267: У | G267: К
A268: 224 | B268: Запеканка из творога с морковью | C268: 170 | D268: 20.99 | E268: 14.09 | F268: 33.33 | G268: 345.28
A269: 14 | B269: Масло сливочное | C269: 10 | D269: 0.08 | E269: 7.25 | F269: 0.13 | G269: 66.1
A270: 209 | B270: Яйцо вареное | C270: 1 шт | D270: 5.1 | E270: 4.6 | F270: 0.28 | G270: 62.84
A271: 378 | B271: Чай с молоком | C271: 200 | D271: 1.49 | E271: 1.62 | F271: 17.37 | G271: 85.85
B272: Батон | C272: 75 | D272: 5.63 | E272: 2.18 | F272: 38.58 | G272: 196.28
B273: Итого завтрак | D273: =D272+D271+D270+D269+D268 -> 33.29 | E273: =E272+E271+E270+E269+E268 -> 29.74 | F273: =F272+F271+F270+F269+F268 -> 89.69 | G273: =G272+G271+G270+G269+G268 -> 756.35
B274: ОБЕД
A275: 75 | B275: Икра свекольная | C275: 75 | D275: 1.13 | E275: 5.669 | F275: 7.69 | G275: 85.34
B276: Сельдь с/с | C276: 25 | D276: 4.25 | E276: 2.12 | F276: - | G276: 36.25
... 316 more rows
